[Event "Reykjavik Open 2022"]
[Site "Reykjavik"]
[Date "2022.04.10"]
[Round "7.6"]
[White "Clarke, Brandon G I"]
[Black "Cornette, Matthieu"]
[Result "0-1"]
[ECO "C02"]
[WhiteElo "2430"]
[BlackElo "2571"]
[Annotator "TA"]
[PlyCount "40"]
[EventDate "2022.04.06"]
[EventCountry "ISL"]
[SourceTitle "playchess.com"]
[Source "ChessBase"]
[SourceQuality "1"]
[TimeControl "40/5400+30:1800+30"]

{[%evp 10,40,0,-4,-7,-18,-24,-33,-36,-50,0,0,0,-27,0,-4,-40,0,-38,-77,-70,-87,-98,-390,-394,-532,-517,-988,-984,-1053,-1000,-1797,-1789]} 1. e4 {[%emt 0:02:02]} e6 {[%emt 0:00:20]} 2. d4 {[%emt 0:00:12]} d5 {[%emt 0:00:06]} 3. e5 {[%emt 0:01:20]} c5 {[%emt 0:00:22]} 4. c3 {[%emt 0:00:02]} Nc6 {[%emt 0:00:06]} 5. Nf3 {[%emt 0:00:07]} Bd7 {[%emt 0:00:17]} 6. Bd3 {[%emt 0:00:34]} cxd4 {[%emt 0:01:38] C02: French: Advance Variation.} 7. O-O {[%emt 0:03:21]} dxc3 {[%emt 0:05:38]} 8. Nxc3 {[%emt 0:00:45]} Nge7 {[%emt 0:00:19] Black is slightly better.} 9. Bg5 {[%emt 0:03:19] Black must now prevent Nb5.} Qb8 {[%emt 0:03:41]} (9... a6 $15) 10. Re1 $11 {[%emt 0:04:49]} Ng6 {[%emt 0:05:44][%cal Rc6e5]} 11. Rc1 {[%emt 0:06:01]} h6 {[%emt 0:13:42]} 12. Be3 {[%emt 0:24:59]} Ngxe5 {[%emt 0:05:13]} 13. Nxe5 {[%emt 0:01:37]} Nxe5 {[%emt 0:01:18][%cal Bc6e5,Be5d3,Bd3c1][%mdl 32] [#]} 14. Nxd5 $146 {[%emt 0:18:04] [#] And now Nc7+ would win.} ({Predecessor:} 14. Bb5 Bd6 15. Bd4 Nc6 16. Nxd5 Kf8 17. Nc3 Nxd4 18. Qxd4 Bxb5 19. Nxb5 Bxh2+ 20. Kh1 {0-1 (45) Mamedov,R (2656)-Rapport,R (2763) Baku 2021}) 14... Bd6 {[%emt 0:02:06] Inhibits Nc7+.} 15. Bd4 {[%emt 0:08:45][%cal Of2f4] Hoping for f4!} Bc6 {[%emt 0:08:31]} 16. Qh5 $2 {[%emt 0:11:28][%mdl 8192] Now White is beyond hope.} Nxd3 $19 {[%emt 0:11:13]} 17. Rxe6+ {[%emt 0:00:20] [#]} Kf8 $1 {[%emt 0:00:16][%cal Be8f8,Bf8g7,Bg7f8][%mdl 32] Black is clearly winning.} 18. Qf5 {[%emt 0:09:37]} (18. Qg4 $142 Rg8 19. Rc3) 18... Nxc1 {[%emt 0:04:03]} 19. Bxg7+ {[%emt 0:01:24]} Kxg7 {[%emt 0:02:33]} 20. Rg6+ {[%emt 0:01:03]} Kf8 {[%emt 0:00:00] Weighted Error Value: White=1.26/Black=0.05 (flawless)} 0-1

[Event "Reykjavik Open 2022"]
[Site "Reykjavik"]
[Date "2022.04.10"]
[Round "7.7"]
[White "Korley, Kassa"]
[Black "Gretarsson, Hjorvar Steinn"]
[Result "1/2-1/2"]
[ECO "D11"]
[WhiteElo "2399"]
[BlackElo "2548"]
[Annotator "TA"]
[PlyCount "28"]
[EventDate "2022.04.06"]
[EventCountry "ISL"]
[SourceTitle "playchess.com"]
[Source "ChessBase"]
[SourceQuality "1"]
[TimeControl "40/5400+30:1800+30"]

{[%evp 9,28,14,18,8,47,37,39,38,37,46,56,50,49,57,77,75,72,89,85,33,50]} 1. d4 {[%emt 0:00:02]} Nf6 {[%emt 0:01:33]} 2. c4 {[%emt 0:00:05]} c6 {[%emt 0:00:30]} 3. Nf3 {[%emt 0:00:13]} d5 {[%emt 0:00:10]} 4. g3 {[%emt 0:00:09]} Bf5 {[%emt 0:02:12]} 5. Nc3 {[%emt 0:00:15]} e6 {[%emt 0:00:39]} 6. Nh4 {[%emt 0:00:31] D11: Slav Defence: 3 Nf3 sidelines and 3...Nf6 4 e3 Bg4.} Be4 {[%emt 0:00:33] 6...dxc4 injects fresh life into this line.} 7. f3 {[%emt 0:00:13]} Bg6 {[%emt 0:00:09]} 8. Qb3 {[%emt 0:00:54]} Qd7 {[%emt 0:00:17]} 9. Nxg6 {[%emt 0:07:34]} hxg6 {[%emt 0:00:46]} 10. Be3 {[%emt 0:00:10] [#]} Bd6 $146 {[%emt 0:26:47] [#] aiming for ...dxc4.} ({Predecessor:} 10... Be7 11. Bg2 Qc7 12. O-O Nbd7 13. cxd5 exd5 14. Bf2 O-O 15. Rac1 Rac8 16. Bh3 Qb6 {½-½ (34) Lysyj,I (2605)-Volkov,S (2557) Barnaul 2021}) 11. Bf2 $1 {[%emt 0:00:10]} O-O {[%emt 0:02:54]} 12. Bh3 {[%emt 0:01:15]} dxc4 {[%emt 0:04:24]} 13. Qxc4 {[%emt 0:00:07]} Qe7 {[%emt 0:02:03]} 14. O-O {[%emt 0:04:27]} ({White should try} 14. e4 $16) 14... Nbd7 {[%emt 0:07:39] Weighted Error Value: White=0.06 (flawless) /Black=0.06 (flawless)} 1/2-1/2

[Event "Reykjavik Open 2022"]
[Site "Reykjavik"]
[Date "2022.04.10"]
[Round "7.8"]
[White "Steingrimsson, Hedinn"]
[Black "Tania, Sachdev"]
[Result "0-1"]
[ECO "E48"]
[WhiteElo "2535"]
[BlackElo "2392"]
[Annotator "TA"]
[PlyCount "188"]
[EventDate "2022.04.06"]
[EventCountry "ISL"]
[SourceTitle "playchess.com"]
[Source "ChessBase"]
[SourceQuality "1"]
[TimeControl "40/5400+30:1800+30"]

{[%evp 11,188,0,6,0,0,-9,-4,-31,22,0,25,0,31,0,0,0,0,0,0,0,0,0,0,0,0,-11,25,26,31,4,16,-13,15,0,0,0,0,0,14,14,12,0,0,-65,-66,-54,-70,-59,0,0,0,0,15,0,0,0,0,0,0,-43,0,0,0,0,0,0,0,0,0,-6,0,0,0,0,0,0,0,0,0,0,0,0,0,0,0,0,248,181,155,34,321,339,358,348,301,301,288,274,274,274,274,266,247,244,610,459,1424,1437,1359,1345,1368,1392,1393,1306,1298,1187,767,1336,1341,1275,1245,1197,1341,1025,12832,12829,12835,1316,1118,1135,1782,1790,1600,1511,12841,12840,12841,12841,12841,12842,12843,12841,12837,12837,12837,12838,12838,12839,12839,12840,12840,12840,12839,12839,12840,12840,12840,12841,12841,12839,12842,0,0,0,0,0,0,-12842,-12843,-12843,0,0,0,-12845,-12846,-12848,-12849,-12849,-12850]} 1. d4 {[%emt 0:01:43]} Nf6 {[%emt 0:00:09]} 2. c4 {[%emt 0:00:05]} e6 {[%emt 0:00:04]} 3. Nc3 {[%emt 0:00:04]} Bb4 {[%emt 0:00:40]} 4. e3 {[%emt 0:00:10]} O-O {[%emt 0:01:10]} 5. Bd3 {[%emt 0:00:41]} d5 {[%emt 0:00:23]} 6. cxd5 {[%emt 0:00:27]} exd5 {[%emt 0:00:06]} 7. a3 {[%emt 0:00:04]} Bd6 {[%emt 0:04:44]} 8. Qc2 {[%emt 0:00:02]} c6 {[%emt 0:00:11]} 9. Nge2 {[%emt 0:00:03]} a5 {[%emt 0:01:32]} ({Black should play} 9... Re8 $15) 10. Bd2 {[%emt 0:06:43]} (10. f3 $5 {[%cal Re3e4]}) 10... Na6 {[%emt 0:00:59]} 11. O-O $1 {[%emt 0:03:09]} Nc7 {[%emt 0:06:08]} 12. Na4 {[%emt 0:13:16]} (12. f3 $5 {[%cal Re3e4]}) 12... Ne6 {[%emt 0:05:07]} 13. b4 {[%emt 0:00:07]} axb4 {[%emt 0:01:42]} 14. Bxb4 {[%emt 0:02:05]} Re8 {[%emt 0:08:27]} 15. Bxd6 $1 {[%emt 0:06:22]} Qxd6 {[%emt 0:00:10]} 16. Rfc1 {[%emt 0:00:09]} Ng4 {[%emt 0:20:46]} 17. Ng3 $1 {[%emt 0:01:53]} g6 {[%emt 0:01:34]} 18. Qb3 {[%emt 0:06:10]} Ng7 {[%emt 0:10:14]} 19. Nb6 {[%emt 0:06:31]} Ra7 {[%emt 0:01:01]} 20. Qb4 {[%emt 0:03:37]} (20. h3 $5 {[%cal Rb6c8]} Nf6 21. a4 $14) 20... Qf6 {[%emt 0:04:25]} 21. Nh1 {[%emt 0:06:21]} Qg5 {[%emt 0:11:08]} 22. Qc5 {[%emt 0:13:42]} Ne6 {[%emt 0:01:35]} 23. Qd6 {[%emt 0:00:33]} Qd8 {[%emt 0:03:59]} 24. Qb4 {[%emt 0:07:01]} h5 {[%emt 0:03:03]} 25. h3 {[%emt 0:00:31]} Nf6 {[%emt 0:00:46]} 26. a4 {[%emt 0:01:21]} Nd7 {[%emt 0:06:16]} 27. a5 {[%emt 0:00:07]} ({Better is} 27. Nxc8 $11 Qxc8 28. Ng3) 27... Nxb6 $15 {[%emt 0:00:24]} 28. axb6 {[%emt 0:02:48]} Rxa1 {[%emt 0:00:05]} 29. Rxa1 {[%emt 0:00:02]} Nf8 {[%emt 0:00:09]} (29... h4 $15) 30. Ng3 $11 {[%emt 0:00:39]} Nd7 {[%emt 0:01:38]} 31. Rb1 {[%emt 0:00:11]} Qe7 {[%emt 0:01:29]} 32. Qc3 {[%emt 0:04:34]} Nf6 {[%emt 0:02:19]} 33. Ne2 {[%emt 0:01:09]} Be6 {[%emt 0:00:48]} 34. Qa5 {[%emt 0:01:01]} Qd7 {[%emt 0:00:05][%cal Oe6h3]} 35. Ra1 {[%emt 0:01:38]} Bf5 {[%emt 0:00:32]} (35... Bxh3 {seems wilder.} 36. gxh3 Qxh3 37. Nf4 Qg4+) 36. Nf4 {[%emt 0:04:41]} g5 {[%emt 0:01:41]} 37. Bxf5 {[%emt 0:00:03]} Qxf5 {[%emt 0:00:02]} 38. Ne2 {[%emt 0:00:05]} Ne4 {[%emt 0:00:17]} 39. Qe1 {[%emt 0:00:10]} h4 {[%emt 0:01:45]} 40. Ra7 {[%emt 0:00:00]} Re7 {[%emt 0:00:00]} 41. Ra8+ {[%emt 0:07:27]} Kg7 {[%emt 0:01:00]} 42. Rb8 {[%emt 0:04:33]} Qd7 {[%emt 0:05:04]} 43. Qb4 {[%emt 0:05:28]} Re8 {[%emt 0:04:04]} 44. Rxe8 {[%emt 0:00:29]} Qxe8 {[%emt 0:00:03]} 45. Nc3 {[%emt 0:01:58]} Nxc3 {[%emt 0:01:46]} 46. Qxc3 {[%emt 0:00:03][%mdl 4096] Endgame KQ-KQ} Qe4 {[%emt 0:02:10]} 47. Qb4 {[%emt 0:00:58] Prevents Qb1+.} Qe6 {[%emt 0:03:18]} 48. Qa3 {[%emt 0:00:46]} Qc8 $2 {[%emt 0:10:48]} (48... f6 $11 {and Black has nothing to worry.}) 49. Qe7 $18 {[%emt 0:10:26]} Kg6 {[%emt 0:00:06]} 50. Kh2 {[%emt 0:02:41]} ({Only move:} 50. f4 $1 $16) 50... Qa8 $2 {[%emt 0:01:40][%mdl 8192]} (50... f6 $14) 51. f4 {[%emt 0:01:53]} f6 {[%emt 0:03:33]} 52. Qd7 {[%emt 0:00:26] Threatening mate with f5+.} Qb8 {[%emt 0:00:53]} 53. Kh1 {[%emt 0:01:12]} gxf4 {[%emt 0:03:23]} 54. Qg4+ $1 {[%emt 0:00:02]} Kf7 {[%emt 0:00:03]} 55. exf4 {[%emt 0:00:04]} Qd8 {[%emt 0:01:06]} 56. Qh5+ {[%emt 0:05:14]} Kg7 {[%emt 0:00:15]} 57. f5 {[%emt 0:00:02]} Qh8 $2 {[%emt 0:00:20]} (57... Qxb6 58. Qg6+ Kf8) 58. Qg4+ {[%emt 0:00:01]} Kf7 {[%emt 0:00:56]} (58... Kf8 $142 59. Qf4 Qh5) 59. Qf4 {[%emt 0:00:11] White threatens Qc7+ and mate.} Qd8 {[%emt 0:00:29]} 60. Qxh4 {[%emt 0:00:27] Qh7+ is the strong threat.} Qxb6 {[%emt 0:00:55]} 61. Qh7+ {[%emt 0:00:02]} Ke8 {[%emt 0:00:19]} 62. Qg6+ {[%emt 0:00:28]} Ke7 {[%emt 0:00:41]} 63. Qg7+ {[%emt 0:00:03]} Ke8 {[%emt 0:00:06]} 64. Qg8+ {[%emt 0:06:25]} Kd7 {[%emt 0:00:07]} 65. Qf7+ {[%emt 0:00:01]} Kc8 {[%emt 0:00:07]} 66. Qxf6 {[%emt 0:00:01] Strongly threatening Qe6+.} Qb1+ {[%emt 0:00:30]} 67. Kh2 {[%emt 0:00:02]} Qf1 {[%emt 0:00:34]} 68. Qe6+ {[%emt 0:00:34]} Kb8 {[%emt 0:00:40]} 69. Qe5+ {[%emt 0:00:27]} (69. Qd6+ $142 Ka7 70. f6) 69... Ka7 {[%emt 0:00:04]} 70. h4 {[%emt 0:00:40] Threatens to win with f6.} Qf2 {[%emt 0:00:26]} 71. Kh3 {[%emt 0:00:04]} c5 {[%emt 0:00:27]} 72. dxc5 {[%emt 0:02:06]} d4 {[%emt 0:00:09]} 73. c6 {[%emt 0:00:28]} bxc6 {[%emt 0:00:33]} 74. Qc7+ {[%emt 0:00:02]} Ka6 {[%emt 0:00:06]} 75. Qxc6+ {[%emt 0:00:02]} Ka5 {[%emt 0:00:12]} 76. Qc5+ {[%emt 0:00:26]} Ka4 {[%emt 0:00:23]} 77. h5 {[%emt 0:00:47]} Qe3+ {[%emt 0:01:03]} 78. g3 {[%emt 0:00:18]} Qe4 {[%emt 0:01:40]} 79. Qc4+ {[%emt 0:02:03]} Ka5 {[%emt 0:00:18]} 80. Qe6 {[%emt 0:00:24]} Qh1+ {[%emt 0:00:26]} 81. Kg4 {[%emt 0:00:01]} Qd1+ {[%emt 0:00:47]} 82. Kg5 {[%emt 0:00:01]} d3 {[%emt 0:00:01]} 83. h6 {[%emt 0:00:16]} Qc1+ {[%emt 0:00:26] [#]} 84. Kg6 $1 {[%emt 0:00:02]} d2 {[%emt 0:00:45]} 85. Qd5+ {[%emt 0:00:28]} Kb4 {[%emt 0:01:48]} 86. Qe4+ $2 {[%emt 0:01:28]} ({White should try} 86. Qd4+ $18 Kb3 87. Qe3+ Kc2 88. h7) 86... Qc4 $1 $11 {[%emt 0:00:51]} 87. Qb1+ {[%emt 0:01:22]} Qb3 {[%emt 0:00:01]} 88. Qe4+ {[%emt 0:00:25]} Qc4 {[%emt 0:00:02]} 89. Qf3 $2 {[%emt 0:00:17][%mdl 8192]} (89. Qe7+ $11 Kc3 90. Qf6+ Kc2 91. h7 Qg4+ 92. Kh6 (92. Qg5 Qh3 $11)) 89... Qg8+ $19 {[%emt 0:01:29]} 90. Kh5 {[%emt 0:00:02] [#]} Qb3 $2 {[%emt 0:00:21]} (90... Qe8+ $1 $19 91. Kg4 Qa4 92. Qe4+ Ka3 93. Qxa4+ Kxa4) 91. Qf4+ {[%emt 0:00:28]} Kc3 $1 {[%emt 0:00:01]} 92. h7 $2 {[%emt 0:01:23][%mdl 8192]} (92. Qe3+ $11 Kc2 93. Qf2 (93. Qxb3+ Kxb3 94. h7 d1=Q+ $19)) 92... Qf7+ {[%emt 0:00:54]} 93. Kh6 {[%emt 0:00:32]} Qf6+ {[%emt 0:00:05]} 94. Kh5 {[%emt 0:00:29]} d1=Q+ {[%emt 0:00:03]} 0-1

[Event "Reykjavik Open 2022"]
[Site "Reykjavik"]
[Date "2022.04.10"]
[Round "7.9"]
[White "Song, Julien"]
[Black "Yoo, Christopher Woojin"]
[Result "1/2-1/2"]
[ECO "E05"]
[WhiteElo "2352"]
[BlackElo "2514"]
[Annotator "TA"]
[PlyCount "68"]
[EventDate "2022.04.06"]
[EventCountry "ISL"]
[SourceTitle "playchess.com"]
[Source "ChessBase"]
[SourceQuality "1"]
[TimeControl "40/5400+30:1800+30"]

{[%evp 13,68,6,0,0,0,0,26,40,45,42,41,57,33,29,28,28,28,29,34,35,39,0,0,0,0,0,0,0,0,12,7,0,6,13,14,0,4,14,24,0,0,0,0,0,0,0,0,0,0,0,0,0,0,0,0,0,0]} 1. d4 {[%emt 0:00:12]} Nf6 {[%emt 0:00:19]} 2. c4 {[%emt 0:00:29]} e6 {[%emt 0:00:20]} 3. Nf3 {[%emt 0:01:04]} d5 {[%emt 0:00:26]} 4. g3 {[%emt 0:00:55]} Be7 {[%emt 0:00:46]} 5. Bg2 {[%emt 0:00:25]} O-O {[%emt 0:00:11]} 6. O-O {[%emt 0:01:06]} dxc4 {[%emt 0:00:44]} 7. Qc2 {[%emt 0:01:06]} b5 {[%emt 0:00:23]} 8. a4 {[%emt 0:01:10] E05: Open Catalan: 5 Nf3 Be7.} b4 {[%emt 0:00:14]} 9. Nfd2 {[%emt 0:01:44]} Nd5 $1 {[%emt 0:00:22][%mdl 4] outshines the older 9...c6.} 10. Nxc4 {[%emt 0:00:55] White has an edge.} c5 {[%emt 0:00:11]} 11. dxc5 {[%emt 0:01:20][%cal Bd4c5,Bc5c6][%mdl 32]} Ba6 {[%emt 0:00:09]} 12. Ne3 {[%emt 0:01:50]} Nd7 $1 {[%emt 0:00:20][%cal Bb8d7,Bd7c5,Bc5e6][%mdl 32]} 13. Nxd5 {[%emt 0:00:57]} exd5 {[%emt 0:00:08]} 14. c6 {[%emt 0:00:43]} Rc8 {[%emt 0:01:36]} 15. Bf4 {[%emt 0:01:15] Prevents Ne5.} Nc5 {[%emt 0:00:55]} 16. Rd1 {[%emt 0:01:39]} d4 {[%emt 0:02:36][%cal Bd5d4,Bd4d3][%mdl 32]} 17. Nd2 {[%emt 0:03:20] [#] Threatens to win with c7.} Bxe2 {[%emt 0:03:02] [#]} 18. Re1 $146 {[%emt 0:01:20] And now c7 would win.} ({Predecessor:} 18. Nb3 d3 19. Qc4 Nxb3 20. Qxb3 Bc5 21. Rd2 Re8 22. Bd5 Qf6 23. Qc4 Rxc6 24. Bxc6 Qxc6 25. Rc1 Bf1 {0-1 (25) Studer,N (2581)-Nihal,S (2620) Biel 2021}) 18... d3 $1 {[%emt 0:07:10]} 19. Qc4 {[%emt 0:02:47] Black must now prevent Be3.} Ne6 {[%emt 0:06:39]} 20. Be3 {[%emt 0:01:47] Inhibits Bc5.} a5 {[%emt 0:08:45]} 21. Rxe2 {[%emt 0:06:37]} dxe2 {[%emt 0:00:08]} 22. Qxe2 {[%emt 0:00:14]} Bc5 {[%emt 0:05:56]} 23. Nc4 {[%emt 0:08:04]} Bxe3 {[%emt 0:12:10]} 24. Nxe3 {[%emt 0:03:32]} Qc7 {[%emt 0:11:57]} 25. Rd1 {[%emt 0:24:56]} Qa7 {[%emt 0:04:06]} 26. h4 {[%emt 0:15:16]} Rfd8 {[%emt 0:06:09] The position is equal.} 27. Rxd8+ {[%emt 0:05:14]} Rxd8 {[%emt 0:00:35]} 28. Qb5 {[%emt 0:05:50]} Rb8 {[%emt 0:04:38]} 29. Qe5 {[%emt 0:02:16]} Qc7 {[%emt 0:01:06]} 30. Qf5 {[%emt 0:01:33] Nd5 is the strong threat.} g6 {[%emt 0:07:04]} 31. Qf6 {[%emt 0:00:39]} Qd8 {[%emt 0:00:13]} 32. Qe5 {[%emt 0:00:15] Hoping for Nd5.} Qc7 {[%emt 0:00:44]} 33. Qf6 {[%emt 0:00:43]} Qd8 {[%emt 0:02:44]} 34. Qe5 {[%emt 0:01:09] [#] Strongly threatening Nd5.} Qc7 {[%emt 0:01:07] Weighted Error Value: White=0.02 (flawless) /Black=0.02 (flawless)} 1/2-1/2

[Event "Reykjavik Open 2022"]
[Site "Reykjavik"]
[Date "2022.04.10"]
[Round "7.10"]
[White "Maze, Sebastien"]
[Black "Cummings, David H."]
[Result "1/2-1/2"]
[ECO "B10"]
[WhiteElo "2527"]
[BlackElo "2327"]
[Annotator "TA"]
[PlyCount "131"]
[EventDate "2022.04.06"]
[EventCountry "ISL"]
[SourceTitle "playchess.com"]
[Source "ChessBase"]
[SourceQuality "1"]
[TimeControl "40/5400+30:1800+30"]

{[%evp 9,131,-3,0,-10,15,20,27,28,29,27,33,28,38,28,41,50,49,57,52,44,55,56,64,-76,-81,-70,-83,-106,-110,-120,-6,-11,8,0,0,-3,0,0,0,0,0,0,0,0,0,0,0,0,0,-16,-13,-29,-25,-34,-35,-31,-16,-74,-14,-15,-21,-77,-45,-48,-52,-68,-75,-90,-91,-93,-78,-70,-96,-75,-78,-93,-8,-8,-8,-8,-8,-8,-8,-8,-8,-8,-8,-14,-8,-8,-8,-8,-8,-8,-8,-8,-8,-8,-8,-8,-8,-8,-8,-8,-8,-8,-8,-8,0,-8,0,-8,-8,-8,-8,-8,-8,-8,0,0,0,0,0,-29973]} 1. e4 {[%emt 0:00:03]} c6 {[%emt 0:00:11]} 2. Nf3 {[%emt 0:00:20][%cal Bg1f3,Bf3e1,Be1d3][%mdl 32]} d5 {[%emt 0:00:12]} 3. d3 {[%emt 0:00:10]} dxe4 {[%emt 0:00:46]} 4. dxe4 {[%emt 0:00:10]} Qxd1+ {[%emt 0:00:05]} 5. Kxd1 {[%emt 0:00:05]} Nf6 {[%emt 0:00:24]} 6. Nbd2 {[%emt 0:00:52] B10: Caro-Kann: 2 d3 and 2 c4.} Nbd7 {[%emt 0:04:14]} 7. Ne1 {[%emt 0:03:10]} h5 {[%emt 0:03:42] [#]} 8. f3 $146 {[%emt 0:06:27] White has an edge.} ({Predecessor:} 8. Nd3 g6 9. f3 Bh6 10. a4 a5 11. Nc4 Bxc1 12. Kxc1 h4 13. Be2 Kd8 14. Re1 {1-0 (61) Moussard,J (2631)-Bogner,S (2574) Sharjah 2021}) 8... g5 {[%emt 0:02:21]} 9. Nd3 {[%emt 0:05:33]} Bh6 {[%emt 0:11:29]} 10. b3 {[%emt 0:39:34]} b6 {[%emt 0:02:02]} 11. Bb2 {[%emt 0:04:19]} Bb7 {[%emt 0:02:02]} 12. e5 {[%emt 0:12:24]} Nd5 {[%emt 0:01:45][%cal Bf6d5,Bd5e3,Be3c2][%mdl 32]} 13. e6 $1 {[%emt 0:00:15]} N7f6 {[%emt 0:00:16]} 14. exf7+ {[%emt 0:00:14]} Kxf7 {[%emt 0:00:14]} 15. Ne5+ {[%emt 0:00:22]} Kg7 {[%emt 0:07:00][%cal Og5g4]} 16. c4 {[%emt 0:00:21]} (16. g3 $14 {stays ahead.}) 16... Ne3+ $17 {[%emt 0:00:56]} 17. Ke2 {[%emt 0:00:01]} g4 {[%emt 0:05:34]} 18. g3 {[%emt 0:06:42]} c5 {[%emt 0:02:53]} 19. Rg1 {[%emt 0:00:10] [#]} Rhd8 {[%emt 0:06:53]} (19... Nc2 $1 $17 {Hoping for ...Be3.} 20. f4 Nxa1 21. Bxa1 Rhd8) 20. f4 $11 {[%emt 0:00:10]} Nc2 $132 {[%emt 0:01:04][%mdl 2048] Black has counterplay} 21. Rc1 {[%emt 0:09:05] The board is on fire.} Nd4+ {[%emt 0:00:52]} 22. Kf2 {[%emt 0:00:03]} Nc6 {[%emt 0:06:36]} 23. Nb1 {[%emt 0:01:04]} Nxe5 {[%emt 0:01:35]} 24. Bxe5 {[%emt 0:00:01]} Kf7 {[%emt 0:04:17]} 25. Bg2 {[%emt 0:00:08]} Bxg2 {[%emt 0:00:43]} 26. Kxg2 {[%emt 0:00:12]} Rd3 {[%emt 0:03:50]} 27. Rcd1 {[%emt 0:02:57]} Rad8 {[%emt 0:00:29]} 28. Rxd3 {[%emt 0:00:20]} Rxd3 {[%emt 0:00:04]} 29. Re1 {[%emt 0:01:34]} Nd7 {[%emt 0:04:29]} 30. Bb2 {[%emt 0:01:13]} Nb8 {[%emt 0:01:54]} 31. Kf2 {[%emt 0:01:21]} Nc6 {[%emt 0:00:39]} 32. Ke2 $1 {[%emt 0:01:32]} Rd6 {[%emt 0:01:33]} 33. Rh1 {[%emt 0:00:53]} (33. Bc3 $11 {keeps the balance.}) 33... Bg7 {[%emt 0:07:10]} (33... Re6+ $17 34. Kd2 Rd6+ 35. Ke2 Re6+ 36. Kd2 Rd6+ 37. Ke2) 34. Bxg7 {[%emt 0:00:14]} Kxg7 {[%emt 0:00:05][%mdl 4096] Endgame KRN-KRN} 35. h3 {[%emt 0:01:44]} (35. Nc3 $11 {remains equal.}) 35... Nd4+ {[%emt 0:02:32]} 36. Kf2 {[%emt 0:00:06]} gxh3 {[%emt 0:03:01]} 37. Rxh3 {[%emt 0:00:48]} Kg6 {[%emt 0:00:39]} 38. Rh1 {[%emt 0:02:04]} Nf5 {[%emt 0:01:00]} 39. Rg1 {[%emt 0:00:03]} Rd3 {[%emt 0:04:14]} 40. g4 {[%emt 0:00:00]} hxg4 {[%emt 0:00:00]} 41. Rxg4+ {[%emt 0:00:36]} Kf6 {[%emt 0:01:15]} 42. Rg8 {[%emt 0:01:12] [#]} Rd1 {[%emt 0:10:23]} ({Better is} 42... Nd4 $1 $17 {With the idea ...Rf3+.} 43. Rg3 Rd1) 43. Nc3 {[%emt 0:00:27] The position is equal.} Rd2+ {[%emt 0:00:42]} 44. Ke1 {[%emt 0:00:27]} Rc2 {[%emt 0:00:32]} 45. Nd5+ {[%emt 0:04:43]} Kf7 {[%emt 0:00:26]} 46. Ra8 {[%emt 0:00:15]} Rxa2 {[%emt 0:00:39] And now ...Nd4 would win.} 47. Nxb6 $1 {[%emt 0:00:21]} Nd4 {[%emt 0:01:11] Strongly threatening ...Re2+.} 48. Nc8 {[%emt 0:15:50]} Nxb3 {[%emt 0:17:09]} 49. Rxa7 {[%emt 0:00:05]} Rxa7 {[%emt 0:00:09]} 50. Nxa7 {[%emt 0:00:03] KN-KN} Na5 {[%emt 0:00:08]} 51. Nb5 {[%emt 0:00:11]} Nxc4 {[%emt 0:00:04]} 52. Nc7 {[%emt 0:00:19]} Nb6 {[%emt 0:02:34]} 53. Ke2 {[%emt 0:02:18]} Kf6 {[%emt 0:00:49]} 54. Ke3 {[%emt 0:01:12]} Kf5 {[%emt 0:00:15]} 55. Kf3 {[%emt 0:00:04]} e6 {[%emt 0:01:22]} 56. Nb5 {[%emt 0:00:14]} Nc4 {[%emt 0:00:54]} 57. Nc3 {[%emt 0:04:22]} Nd6 {[%emt 0:01:41]} 58. Nd1 {[%emt 0:00:04]} Nc4 {[%emt 0:02:02]} 59. Nc3 {[%emt 0:00:06]} Nb6 {[%emt 0:00:43]} 60. Ne4 {[%emt 0:00:23]} c4 {[%emt 0:00:07]} 61. Nd6+ {[%emt 0:00:08]} Kf6 {[%emt 0:00:17]} 62. Ne4+ {[%emt 0:00:41]} Kg6 {[%emt 0:00:19]} 63. Ke3 {[%emt 0:03:49]} Na4 {[%emt 0:00:53]} 64. Ng3 {[%emt 0:01:05]} c3 {[%emt 0:01:01]} 65. Kd3 {[%emt 0:00:10]} Kf6 {[%emt 0:00:03]} 66. Ke4 $2 {[%emt 0:01:14][%mdl 40960] Weighted Error Value: White=0.11 (very precise) /Black=0.11 (very precise) . An unexpected result.} (66. Ne2 $11) 1/2-1/2

[Event "Reykjavik Open 2022"]
[Site "Reykjavik"]
[Date "2022.04.10"]
[Round "7.11"]
[White "Sadhwani, Raunak"]
[Black "De Wachter, Matthias"]
[Result "1-0"]
[ECO "C54"]
[WhiteElo "2616"]
[BlackElo "2322"]
[Annotator "TA"]
[PlyCount "43"]
[EventDate "2022.04.06"]
[EventCountry "ISL"]
[SourceTitle "playchess.com"]
[Source "ChessBase"]
[SourceQuality "1"]
[TimeControl "40/5400+30:1800+30"]

{[%evp 10,43,10,0,0,0,15,12,12,0,37,15,23,28,28,26,43,33,44,33,79,66,66,65,115,100,133,155,148,145,137,133,200,195,326,84]} 1. e4 {[%emt 0:00:02]} e5 {[%emt 0:00:30]} 2. Nf3 {[%emt 0:00:08]} Nc6 {[%emt 0:00:13]} 3. Bc4 {[%emt 0:00:45]} Bc5 {[%emt 0:00:56]} 4. c3 {[%emt 0:00:19]} Nf6 {[%emt 0:00:23]} 5. d3 {[%emt 0:00:08]} O-O {[%emt 0:02:07]} 6. Bg5 {[%emt 0:00:06][%cal Bc1g5,Bg5h4,Bh4g3][%mdl 32]} h6 {[%emt 0:05:49] C54: Giuoco Piano: 4 c3 Nf6, main lines with 5 d4 and 5 d3.} 7. Bh4 {[%emt 0:00:41]} Be7 {[%emt 0:04:15]} 8. a4 {[%emt 0:01:14]} d6 {[%emt 0:03:11] The position is equal.} 9. Bg3 {[%emt 0:00:31] [#]} Kh8 $146 {[%emt 0:25:27]} ({Predecessor:} 9... g6 10. h3 Nh5 11. Bh2 Bf6 12. Nbd2 Bg7 13. Nf1 Qe8 14. Ne3 Be6 15. Bxe6 Qxe6 {½-½ (34) Demchenko,A (2670)-Gledura,B (2626) Barcelona 2018}) 10. a5 {[%emt 0:03:39]} a6 {[%emt 0:00:41]} 11. Nbd2 {[%emt 0:07:54][%cal Bb1d2,Bd2f1,Bf1e3][%mdl 32]} Nh7 {[%emt 0:06:57]} 12. Qb3 {[%emt 0:01:16]} f5 {[%emt 0:11:40]} 13. exf5 {[%emt 0:00:24]} Rxf5 {[%emt 0:00:10]} 14. Nf1 {[%emt 0:00:55]} e4 {[%emt 0:15:36]} (14... Rf8 $14) 15. dxe4 $16 {[%emt 0:00:19]} Rxa5 {[%emt 0:00:18]} 16. Rd1 $40 {[%emt 0:01:14][%mdl 128] White is up to no good.} Bf6 {[%emt 0:00:49]} (16... Nf6 $14) 17. Ne3 {[%emt 0:02:15]} Qe8 {[%emt 0:03:39]} 18. O-O {[%emt 0:03:28]} Rc5 {[%emt 0:05:06]} (18... Qxe4 $2 19. Rfe1 Qe7 20. Nd5 Rxd5 21. Bxd5) 19. Qa2 {[%emt 0:02:36] &Bianco is more active.} Qxe4 {[%emt 0:02:13]} 20. Rfe1 {[%emt 0:02:40][%cal Oe3d5] [#] And now Nd5! would win.} Bd7 {[%emt 0:06:48]} (20... Rxc4 $16 {was necessary.} 21. Nd5 (21. Qxc4 Qxc4 22. Nxc4 Bg4 $16) (21. Nxc4 Qg6 $16) 21... Be6) 21. b4 $18 {[%emt 0:02:03][%mdl 1024] White has strong compensation.} Rh5 {[%emt 0:01:22]} (21... Rxc4 $142 22. Nxc4 Qf5) 22. Bd5 $2 {[%emt 0:02:56] Weighted Error Value: White=0.03 (flawless) /Black=0.26 (precise)} (22. Nd5 $18 {is more deadly.} Rxd5 23. Bxd5 (23. Rxe4 Rxd1+ 24. Bf1 Bf5 $14)) 1-0